[Event "CCT Julius Baer-D2-Place 2024"]
[Site "Online"]
[Date "2024.09.26"]
[Round "1"]
[White "Robson, Ray"]
[Black "Micki-taryan"]
[Result "1-0"]
[ECO "A29"]
[WhiteElo "2700"]
[BlackElo "2656"]
[Annotator "RC"]
[PlyCount "107"]
[EventDate "2024.09.25"]
[EventType "swiss"]
[EventCountry "NET"]
[SourceTitle "playchess.com"]
[Source "ChessBase"]
[SourceQuality "1"]
[TimeControl "600+2"]

1. c4 {[%emt 0:00:08]} e5 {[%emt 0:00:03]} 2. g3 {[%emt 0:00:03]} Nf6 {[%emt 0:00:03]} 3. Bg2 {[%emt 0:00:01]} d5 {[%emt 0:00:01]} 4. cxd5 {[%emt 0:00:02]} Nxd5 {[%emt 0:00:00]} 5. Nf3 {[%emt 0:00:01]} Nc6 {[%emt 0:00:01]} 6. O-O {[%emt 0:00:04]} Nb6 {[%emt 0:00:01]} 7. Nc3 {[%emt 0:00:02]} Be7 {[%emt 0:00:04]} 8. b3 {[%emt 0:00:01]} O-O {[%emt 0:00:05]} 9. Bb2 {[%emt 0:00:02]} Bf5 {[%emt 0:00:01]} 10. Rc1 {[%emt 0:00:20]} e4 {[%emt 0:00:02]} 11. Ne1 {[%emt 0:00:11]} Bf6 {[%emt 0:00:01]} 12. d3 {[%emt 0:01:59]} Nd5 {[%emt 0:00:03]} 13. dxe4 {[%emt 0:01:17]} Nxc3 {[%emt 0:00:03]} 14. Bxc3 {[%emt 0:00:12]} Qxd1 {[%emt 0:00:02]} 15. Rxd1 {[%emt 0:00:01]} Bg4 {[%emt 0:00:00]} 16. f3 {[%emt 0:01:50]} Bxc3 {[%emt 0:00:02]} 17. fxg4 {[%emt 0:00:01]} Ne5 {[%emt 0:00:07]} 18. Bf3 {[%emt 0:00:22]} Bxe1 {[%emt 0:00:26]} 19. Rfxe1 {[%emt 0:00:01]} c6 {[%emt 0:00:03]} 20. g5 {[%emt 0:00:32]} Rfd8 {[%emt 0:00:02]} 21. Kf2 {[%emt 0:00:02]} Kf8 {[%emt 0:00:01]} 22. Ke3 {[%emt 0:00:04]} Ke7 {[%emt 0:00:01]} 23. Kf4 {[%emt 0:00:08]} Ng6+ {[%emt 0:00:06]} 24. Ke3 {[%emt 0:00:20]} a5 {[%emt 0:00:06]} 25. a4 {[%emt 0:00:14]} Ne5 {[%emt 0:00:03]} 26. Kf4 {[%emt 0:00:01]} Nd7 {[%emt 0:00:00]} 27. Rc1 {[%emt 0:00:17]} Nf8 {[%emt 0:00:06]} 28. Ke3 {[%emt 0:00:09]} Ra6 {[%emt 0:00:07]} 29. h4 {[%emt 0:00:27]} Rb6 {[%emt 0:00:05]} 30. Rc3 {[%emt 0:00:01]} Ne6 {[%emt 0:00:05]} 31. Bg4 {[%emt 0:00:06]} Nd4 {[%emt 0:00:05]} 32. Rb1 {[%emt 0:00:03]} Rb4 {[%emt 0:00:09]} 33. Bf3 {[%emt 0:00:49]} b6 {[%emt 0:00:13]} 34. e5 {[%emt 0:00:15]} Nf5+ {[%emt 0:00:06]} 35. Kf2 {[%emt 0:00:02]} c5 {[%emt 0:00:01]} 36. Rd3 {[%emt 0:00:32]} Rdd4 {[%emt 0:00:37]} 37. Bd5 {[%emt 0:00:19]} g6 {[%emt 0:00:37]} 38. Rbd1 {[%emt 0:00:02]} Rxd3 {[%emt 0:00:10]} 39. Rxd3 {[%emt 0:00:01]} Nd4 {[%emt 0:00:30]} 40. Ke3 {[%emt 0:00:04]} b5 {[%emt 0:00:30]} 41. Rc3 {[%emt 0:00:04]} Nf5+ {[%emt 0:00:13]} 42. Kf2 {[%emt 0:00:01]} bxa4 {[%emt 0:01:44]} 43. bxa4 {[%emt 0:00:01]} Rxa4 {[%emt 0:00:26]} 44. Rxc5 {[%emt 0:00:01]} Ra3 {[%emt 0:00:00]} 45. Rc7+ {[%emt 0:00:02]} Ke8 {[%emt 0:00:00]} 46. Bxf7+ {[%emt 0:00:09]} Kd8 {[%emt 0:00:02]} 47. Ra7 {[%emt 0:00:06]} Nxg3 {[%emt 0:00:03]} 48. e6 {[%emt 0:00:03]} Nf5 {[%emt 0:00:08]} 49. Rd7+ {[%emt 0:00:02]} Kc8 {[%emt 0:00:00]} 50. e7 {[%emt 0:00:00]} Kxd7 {[%emt 0:00:29]} 51. e8=Q+ {[%emt 0:00:01]} Kc7 {[%emt 0:00:00]} 52. Qe5+ {[%emt 0:00:02]} Nd6 {[%emt 0:00:01]} 53. Qc5+ {[%emt 0:00:02]} Kd7 {[%emt 0:00:00]} 54. Qxa3 {[%emt 0:00:01]} 1-0

[Event "CCT Julius Baer-D2-Place 2024"]
[Site "Online"]
[Date "2024.09.26"]
[Round "1"]
[White "Deac, Bogdan-Daniel"]
[Black "Yakubboev, Nodirbek"]
[Result "1/2-1/2"]
[ECO "C54"]
[WhiteElo "2680"]
[BlackElo "2666"]
[Annotator "TA"]
[PlyCount "111"]
[EventDate "2024.09.25"]
[EventType "swiss"]
[EventCountry "NET"]
[SourceTitle "playchess.com"]
[Source "ChessBase"]
[SourceQuality "1"]
[TimeControl "600+2"]

{[%evp 55,111,118,253,251,247,245,260,252,498,519,516,489,456,337,756,749,1023,1015,958,8,10,0,0,0,0,0,0,0,0,0,0,0,0,0,0,0,0,0,0,0,0,0,0,0,0,0,0,0,0,0,0,0,0,0,0,0,0,0]} 1. e4 {[%emt 0:00:03]} e5 {[%emt 0:00:05]} 2. Nf3 {[%emt 0:00:01]} Nc6 {[%emt 0:00:01]} 3. Bc4 {[%emt 0:00:01]} Bc5 {[%emt 0:00:03]} 4. c3 {[%emt 0:00:01]} Nf6 {[%emt 0:00:02]} 5. d3 {[%emt 0:00:01]} a5 {[%emt 0:00:09]} 6. O-O {[%emt 0:00:02] C54: Giuoco Piano: 4 c3 Nf6, main lines with 5 d4 and 5 d3.} d6 {[%emt 0:00:01]} 7. Re1 {[%emt 0:00:01]} Ba7 {[%emt 0:00:22]} 8. Na3 {[%emt 0:00:02]} O-O {[%emt 0:00:05]} 9. h3 {[%emt 0:00:01]} h6 {[%emt 0:00:13]} 10. Be3 {[%emt 0:00:18]} Bxe3 {[%emt 0:00:03]} 11. Rxe3 {[%emt 0:00:00]} Re8 {[%emt 0:00:12]} 12. Nb5 $146 {[%emt 0:00:02]} ({Predecessor:} 12. Qe1 Bd7 13. d4 exd4 14. Nxd4 Nxd4 15. cxd4 c6 16. Bd3 b5 17. Rd1 Qb6 18. Bb1 Rac8 19. Nc2 b4 20. f3 c5 {½-½ Dyson,J (2035)-Wiaderek,P (2236) FICGS class A 000269 email 2023 (1)}) 12... Ne7 {[%emt 0:00:30]} 13. d4 {[%emt 0:00:05]} Ng6 {[%emt 0:00:02]} 14. Bf1 {[%emt 0:00:17]} Bd7 {[%emt 0:00:40]} 15. c4 {[%emt 0:00:24]} exd4 {[%emt 0:00:13]} 16. Qxd4 {[%emt 0:00:07]} Bc6 {[%emt 0:00:02]} 17. Nc3 {[%emt 0:00:06]} Nd7 {[%emt 0:00:17]} 18. Qd2 {[%emt 0:00:16]} Nc5 {[%emt 0:00:51]} 19. Rae1 {[%emt 0:00:03]} Ne6 {[%emt 0:01:17]} 20. Nd5 {[%emt 0:00:40]} Ne5 {[%emt 0:00:12]} 21. Nd4 {[%emt 0:00:05]} Nxd4 {[%emt 0:02:27]} 22. Qxd4 {[%emt 0:00:03]} Nd7 {[%emt 0:00:14]} 23. Rg3 {[%emt 0:00:24]} f6 {[%emt 0:00:03]} 24. Qd2 {[%emt 0:01:04]} Kf8 {[%emt 0:00:13]} 25. Nf4 {[%emt 0:00:17]} g5 {[%emt 0:01:00]} 26. Nd5 {[%emt 0:00:56]} Re6 {[%emt 0:00:02]} 27. h4 {[%emt 0:00:54]} Nc5 {[%emt 0:00:09]} 28. Bd3 {[%emt 0:00:23]} (28. hxg5 $18 hxg5 29. f4 Bxd5 (29... Rxe4 $2 30. fxg5 Bxd5 31. gxf6 $18) (29... Nxe4 $2 30. Qd4 $18)) 28... Qd7 {[%emt 0:00:18]} (28... Bxd5 $16 29. cxd5 Re7) 29. hxg5 $18 {[%emt 0:00:15]} hxg5 {[%emt 0:00:10]} 30. f4 {[%emt 0:00:10]} Nxd3 {[%emt 0:00:55]} 31. Qxd3 {[%emt 0:01:00]} (31. Rxd3 Rae8 $18) 31... Qg7 $2 {[%emt 0:00:05]} (31... Rae8 32. fxg5 f5) 32. fxg5 $18 {[%emt 0:00:04]} fxg5 {[%emt 0:00:04]} 33. Rf1+ {[%emt 0:00:01]} Ke8 {[%emt 0:00:01]} 34. Rh3 {[%emt 0:01:53]} Kd7 $2 {[%emt 0:00:04]} (34... g4 35. Nxc7+ Qxc7 36. Rh8+ Kd7 37. Rf7+ (37. Rxa8 Qb6+ 38. Kh2 g3+ 39. Kxg3 Rxe4 $18) 37... Re7 38. Rxe7+ (38. Rxa8 $2 Rxf7 39. Qd4 b6 $19) 38... Kxe7 39. Rh7+ (39. Rxa8 Qb6+ 40. Kh2 Qxb2 $18) 39... Kd8 40. Rxc7 Kxc7) 35. e5 $18 {[%emt 0:00:14]} Rh8 {[%emt 0:00:01]} 36. Rxh8 {[%emt 0:00:51]} Qxh8 {[%emt 0:00:00] [#]} 37. Rf7+ $2 {[%emt 0:00:01]} (37. Qf5 $1 $18 {[%cal Rf5f7] White threatens Qf7+ and mate.} Qg7 38. Re1 (38. Nxc7 Qxe5 39. Qxe6+ Qxe6 $18)) 37... Kd8 $1 $11 {[%emt 0:00:01]} 38. Nxc7 {[%emt 0:00:05]} Rh6 {[%emt 0:00:01]} 39. Qg3 {[%emt 0:00:05]} (39. exd6 $2 {too greedy.} Rh1+ 40. Kf2 Qxb2+ 41. Qe2 Qd4+ 42. Qe3 Rf1+ (42... Qxd6 $2 {perishes.} 43. c5 $18) 43. Kxf1 Qxe3 $19) 39... Qxe5 {[%emt 0:00:05]} (39... dxe5 $2 {loses.} 40. Qxg5+ Kc8 41. Qf5+ Kb8 42. Rf8+ $18) 40. Qxe5 {[%emt 0:00:01]} dxe5 {[%emt 0:00:00]} 41. Nd5 {[%emt 0:00:00]} Rd6 {[%emt 0:00:02]} 42. Rg7 {[%emt 0:00:05]} Bxd5 {[%emt 0:00:02]} 43. cxd5 {[%emt 0:00:00]} Rxd5 {[%emt 0:00:01]} 44. Rxg5 {[%emt 0:00:01]} a4 {[%emt 0:00:03]} 45. Rg4 {[%emt 0:00:01]} Rb5 {[%emt 0:00:02]} 46. Rxa4 {[%emt 0:00:02]} Rxb2 {[%emt 0:00:01]} 47. Re4 {[%emt 0:00:01]} Rxa2 {[%emt 0:00:01]} 48. Rxe5 {[%emt 0:00:00]} Kd7 {[%emt 0:00:01]} 49. g4 {[%emt 0:00:04]} Ra4 {[%emt 0:00:05]} 50. g5 {[%emt 0:00:02]} Kd6 {[%emt 0:00:01]} 51. Rf5 {[%emt 0:00:01]} Ke6 {[%emt 0:00:01]} 52. Rb5 {[%emt 0:00:01]} Kf7 {[%emt 0:00:01]} 53. Kf2 {[%emt 0:00:02]} Kg6 {[%emt 0:00:02]} 54. Rxb7 {[%emt 0:00:00]} Kxg5 {[%emt 0:00:01]} 55. Rb5+ {[%emt 0:00:02]} Kf6 {[%emt 0:00:01]} 56. Rb2 {[%emt 0:00:01]} 1/2-1/2

[Event "CCT Julius Baer-D2-Place 2024"]
[Site "Online"]
[Date "2024.09.26"]
[Round "1"]
[White "Yakubboev, Nodirbek"]
[Black "Deac, Bogdan-Daniel"]
[Result "1-0"]
[ECO "A21"]
[WhiteElo "2666"]
[BlackElo "2680"]
[Annotator "TA"]
[PlyCount "79"]
[EventDate "2024.09.25"]
[EventType "swiss"]
[EventCountry "NET"]
[SourceTitle "playchess.com"]
[Source "ChessBase"]
[SourceQuality "1"]
[TimeControl "600+2"]

{[%evp 9,79,0,45,48,51,41,40,39,47,41,42,39,44,48,42,42,29,31,38,16,41,41,41,37,41,26,29,25,26,28,27,6,16,2,20,18,30,9,43,44,40,49,63,65,70,71,94,83,88,64,92,88,103,114,133,135,177,124,128,118,187,184,188,161,166,189,332,293,387,404,741,419]} 1. c4 {[%emt 0:00:09]} e5 {[%emt 0:00:11]} 2. Nc3 {[%emt 0:00:06]} Bb4 {[%emt 0:00:25]} 3. Nd5 {[%emt 0:00:05]} Be7 {[%emt 0:00:02]} 4. Nf3 {[%emt 0:00:06]} d6 {[%emt 0:00:50]} 5. d4 {[%emt 0:00:03]} Nd7 {[%emt 0:01:11][%cal Bb8d7,Bd7c5,Bc5d3][%mdl 32]} 6. e4 {[%emt 0:00:09]} Ngf6 {[%emt 0:00:06]} 7. Bd3 {[%emt 0:00:05]} exd4 {[%emt 0:00:06]} 8. Nxd4 {[%emt 0:00:09] White is slightly better.} Nc5 {[%emt 0:00:06]} 9. O-O {[%emt 0:00:10]} Nxd3 {[%emt 0:00:21]} 10. Qxd3 {[%emt 0:00:00]} O-O {[%emt 0:00:01]} 11. Nxe7+ {[%emt 0:00:35]} Qxe7 {[%emt 0:00:02]} 12. f3 {[%emt 0:00:01]} Nd7 {[%emt 0:00:11]} 13. b3 {[%emt 0:01:09]} Nc5 {[%emt 0:00:05]} 14. Qc2 {[%emt 0:00:58]} a5 {[%emt 0:00:04]} 15. Bb2 {[%emt 0:00:05]} f6 {[%emt 0:00:04]} 16. Rae1 {[%emt 0:00:19]} Bd7 {[%emt 0:00:05]} 17. Qd2 {[%emt 0:00:10]} b6 {[%emt 0:00:09]} 18. Nc2 {[%emt 0:00:12][%cal Bd4c2,Bc2e3,Be3d5][%mdl 32]} Qf7 {[%emt 0:00:22]} 19. Ne3 {[%emt 0:00:03]} Rae8 {[%emt 0:00:02]} 20. g4 {[%emt 0:00:26]} b5 {[%emt 0:01:39]} 21. Nd5 {[%emt 0:00:25]} bxc4 {[%emt 0:00:25]} 22. bxc4 {[%emt 0:00:00]} (22. Nxc7 Rc8 23. Qxd6 Nd3 $17) 22... Be6 {[%emt 0:00:25]} 23. Rc1 {[%emt 0:00:37]} ({Much worse is} 23. Qxa5 Ra8 24. Qc3 c6 $11 (24... Rxa2 25. Ba3 $11)) 23... c6 {[%emt 0:01:38]} 24. Ne3 {[%emt 0:00:03]} Rd8 {[%emt 0:00:01][%cal Be8d8,Bd8d7,Bd7b7][%mdl 32]} 25. Rfd1 {[%emt 0:00:16]} Qc7 {[%emt 0:00:33]} 26. Bc3 {[%emt 0:00:27]} Rd7 {[%emt 0:00:22]} 27. Bxa5 {[%emt 0:00:12]} Qa7 {[%emt 0:00:02]} 28. Bc3 {[%emt 0:00:04]} Ra8 {[%emt 0:00:03]} 29. Bd4 {[%emt 0:00:15]} Qa3 {[%emt 0:00:05]} 30. Rc2 {[%emt 0:00:15]} Rb7 {[%emt 0:00:28]} 31. Kf2 {[%emt 0:00:16]} Kf7 {[%emt 0:00:11]} 32. h4 {[%emt 0:00:11]} Nd7 {[%emt 0:00:29]} 33. Qe2 {[%emt 0:01:01]} (33. g5 $18) 33... h6 {[%emt 0:00:18]} 34. Rd3 {[%emt 0:00:58]} Qa4 {[%emt 0:00:03] [#]} (34... Qa5 $16) 35. f4 $1 $18 {[%emt 0:00:16][%cal Bf3f4,Bf4f5][%mdl 32] f5 is the strong threat.} Kg8 {[%emt 0:00:01]} 36. f5 {[%emt 0:00:13]} Bf7 {[%emt 0:00:01]} 37. g5 $1 {[%emt 0:00:06] aiming for Qg4.} hxg5 {[%emt 0:00:01]} (37... Kf8 $142 38. g6 Be8) 38. hxg5 {[%emt 0:00:01]} fxg5 {[%emt 0:00:00] [#]} 39. Qg4 $1 {[%emt 0:00:02]} c5 {[%emt 0:00:09]} (39... Ne5 $142 40. Bxe5 (40. Qxg5 $2 {is the wrong capture.} Nxd3+ 41. Kg3 Be8 $19) 40... dxe5 41. Qxg5 Rf8) 40. Bc3 {[%emt 0:00:11] Weighted Error Value: White=0.08 (flawless) /Black=0.23 (precise) .  Mistake:       	White=1     	Black=3      Inaccurate:     	White=1     	Black=4      OK:         	White=11    	Black=7      Strong:       	White=3     	---} 1-0

[Event "CCT Julius Baer-D2-Place 2024"]
[Site "Online"]
[Date "2024.09.26"]
[Round "1"]
[White "Gelfand, Boris"]
[Black "Sargsyan, Shant"]
[Result "0-1"]
[ECO "E05"]
[WhiteElo "2658"]
[BlackElo "2649"]
[Annotator "TA"]
[PlyCount "94"]
[EventDate "2024.09.25"]
[EventType "swiss"]
[EventCountry "NET"]
[SourceTitle "playchess.com"]
[Source "ChessBase"]
[SourceQuality "1"]
[TimeControl "600+2"]

{[%evp 18,94,20,13,14,6,7,9,13,7,16,5,19,17,24,29,29,30,29,33,25,25,38,37,34,35,36,29,31,30,38,31,33,37,34,21,18,19,36,7,30,30,60,40,51,31,49,0,0,0,0,0,0,0,0,0,98,0,8,7,10,7,5,-38,-42,-389,-402,-392,-356,-358,-312,-497,-483,-2055,-2021,-1591,-1543,-29988,-29989]} 1. Nf3 {[%emt 0:00:04]} d5 {[%emt 0:00:04]} 2. d4 {[%emt 0:00:01]} Nf6 {[%emt 0:00:02]} 3. c4 {[%emt 0:00:01]} e6 {[%emt 0:00:01]} 4. g3 {[%emt 0:00:01]} Be7 {[%emt 0:00:00]} 5. Bg2 {[%emt 0:00:02]} O-O {[%emt 0:00:01]} 6. O-O {[%emt 0:00:01]} dxc4 {[%emt 0:00:00]} 7. Qc2 {[%emt 0:00:01]} a6 {[%emt 0:00:01]} 8. a4 {[%emt 0:00:01]} Bd7 {[%emt 0:00:01]} 9. Qxc4 {[%emt 0:00:01]} Bc6 {[%emt 0:00:00]} 10. Bg5 {[%emt 0:00:01]} Nbd7 {[%emt 0:00:01]} 11. Rc1 {[%emt 0:00:01]} a5 {[%emt 0:00:14]} 12. e3 {[%emt 0:00:16]} h6 {[%emt 0:00:08] Strongly threatening ...Nb6. The position is equal.} 13. Bxf6 {[%emt 0:00:01]} Nxf6 {[%emt 0:00:02]} 14. Nbd2 {[%emt 0:00:05]} Bb4 {[%emt 0:00:15]} 15. Qe2 {[%emt 0:00:08]} Bxd2 {[%emt 0:00:23]} 16. Nxd2 {[%emt 0:00:02]} Bxg2 {[%emt 0:00:02]} 17. Kxg2 {[%emt 0:00:01]} c6 {[%emt 0:00:01]} 18. Nc4 {[%emt 0:00:15]} Nd5 {[%emt 0:00:25]} 19. Rd1 {[%emt 0:00:28]} Nb6 {[%emt 0:00:12]} 20. b3 {[%emt 0:00:30]} Qc7 {[%emt 0:00:23]} 21. Rac1 {[%emt 0:00:14]} Rfd8 {[%emt 0:00:03]} 22. Ne5 {[%emt 0:00:26]} Nd7 {[%emt 0:00:07]} 23. Nd3 {[%emt 0:00:13]} Qb6 {[%emt 0:00:03]} 24. Qc2 {[%emt 0:00:38]} Rac8 {[%emt 0:00:05]} 25. h4 {[%emt 0:00:41]} Nf6 {[%emt 0:00:11]} 26. Nc5 {[%emt 0:00:23]} Qc7 {[%emt 0:00:08]} 27. Qe2 {[%emt 0:00:25]} Qe7 {[%emt 0:00:31]} 28. Qe1 {[%emt 0:00:37]} Qc7 {[%emt 0:00:14]} (28... b6 $5 29. Nd3 $8 Rd5 $11) 29. Nd3 {[%emt 0:00:07]} h5 {[%emt 0:00:16]} 30. Rc5 {[%emt 0:00:17]} Rd5 {[%emt 0:00:06]} 31. Rdc1 {[%emt 0:00:05]} g6 {[%emt 0:00:38]} 32. Nf4 {[%emt 0:00:33]} (32. R5c4 $14) 32... Rxc5 $11 {[%emt 0:00:01]} 33. Rxc5 {[%emt 0:00:02]} b6 {[%emt 0:00:00]} 34. Rc1 {[%emt 0:00:07]} Qd6 {[%emt 0:00:01]} 35. Qe2 {[%emt 0:00:18]} c5 {[%emt 0:00:25]} 36. Qb5 {[%emt 0:00:36]} Ne4 {[%emt 0:00:21] [#]} (36... Rd8 $11 {keeps the balance.}) 37. Rc2 {[%emt 0:00:22]} (37. Qd3 $1 $16 {[%cal Rd3e4]} Nf6 38. Nxg6) 37... Rd8 {[%emt 0:00:17]} 38. f3 {[%emt 0:00:14]} Nf6 {[%emt 0:00:06]} 39. dxc5 {[%emt 0:00:01]} bxc5 {[%emt 0:00:01]} 40. Qxa5 {[%emt 0:00:20]} (40. e4 {feels hotter.} Qd1 41. Qxc5 e5 42. Ne2) 40... e5 {[%emt 0:00:08]} 41. Ne2 $2 {[%emt 0:00:46][%mdl 8192] [#] White does not recover from this.} (41. Nxg6 $15 fxg6 42. Qxc5) 41... e4 $1 $19 {[%emt 0:00:06]} 42. Qxc5 {[%emt 0:00:02]} (42. Rxc5 $2 {perishes.} Qd1 $19) 42... exf3+ {[%emt 0:00:20]} 43. Kxf3 {[%emt 0:00:01] Hoping for Qxd6.} Qe6 {[%emt 0:00:08]} 44. Qc6 {[%emt 0:00:39] Inhibits Qe4+.} (44. Qc4 $142 Qh3 45. Nd4 (45. Nf4 $2 Qh1+ 46. Ng2 Qd1+ 47. Qe2 Qd5+ 48. e4 Qxb3+ 49. Ne3 Rd3 $19)) 44... Qh3 {[%emt 0:00:19]} 45. Rc1 {[%emt 0:00:04] Inhibits Qf1+.} (45. Qxf6 $2 {too greedy.} Qf1+ 46. Ke4 Qxf6) (45. Nd4 $142 Ng4 46. Qb5) 45... Qg4+ {[%emt 0:00:17]} 46. Kf2 {[%emt 0:00:02]} Ne4+ {[%emt 0:00:09]} 47. Ke1 {[%emt 0:00:14]} Qf3 {[%emt 0:00:09] Weighted Error Value: White=0.64/Black=0.10 (very precise) .  Loses game:     	White=1     	---        Mistake:       	White=4     	Black=1      Inaccurate:     	White=2     	Black=1      OK:         	White=12    	Black=11     Best:        	White=1     	Black=4      Strong:       	---       	Black=1} 0-1

[Event "CCT Julius Baer-D2-Place 2024"]
[Site "Online"]
[Date "2024.09.26"]
[Round "1"]
[White "Gelfand, Boris"]
[Black "Sargsyan, Shant"]
[Result "1/2-1/2"]
[ECO "A34"]
[WhiteElo "2658"]
[BlackElo "2649"]
[Annotator "ChessBase"]
[PlyCount "138"]
[EventDate "2024.09.25"]
[EventType "swiss"]
[EventCountry "NET"]
[SourceTitle "playchess.com"]
[Source "ChessBase"]
[SourceQuality "1"]
[TimeControl "600+2"]

1. Nf3 {[%emt 0:00:03]} d5 {[%emt 0:00:04]} 2. c4 {[%emt 0:00:01]} e6 {[%emt 0:00:02]} 3. g3 {[%emt 0:00:02]} Nf6 {[%emt 0:00:00]} 4. Bg2 {[%emt 0:00:02]} Be7 {[%emt 0:00:01]} 5. O-O {[%emt 0:00:01]} O-O {[%emt 0:00:00]} 6. b3 {[%emt 0:00:01]} c5 {[%emt 0:00:02]} 7. cxd5 {[%emt 0:00:08]} Nxd5 {[%emt 0:00:02]} 8. Bb2 {[%emt 0:00:01]} Nc6 {[%emt 0:00:01]} 9. Nc3 {[%emt 0:00:03]} Nc7 {[%emt 0:01:19]} 10. Na4 {[%emt 0:01:03]} Rb8 {[%emt 0:01:34]} 11. d4 {[%emt 0:01:21]} cxd4 {[%emt 0:00:07]} 12. Nxd4 {[%emt 0:00:01]} Nxd4 {[%emt 0:00:06]} 13. Qxd4 {[%emt 0:00:02]} Qxd4 {[%emt 0:00:01]} 14. Bxd4 {[%emt 0:00:01]} Nb5 {[%emt 0:00:18]} 15. Be5 {[%emt 0:00:02]} Bd6 {[%emt 0:00:09]} 16. Bxd6 {[%emt 0:00:29]} Nxd6 {[%emt 0:00:01]} 17. Rfd1 {[%emt 0:00:30]} Nb5 {[%emt 0:00:15]} 18. Rac1 {[%emt 0:00:02]} b6 {[%emt 0:00:20]} 19. Nb2 {[%emt 0:00:19]} e5 {[%emt 0:00:38]} 20. e3 {[%emt 0:00:36]} Bg4 {[%emt 0:00:06]} 21. Rd5 {[%emt 0:00:11]} Rbc8 {[%emt 0:00:05]} 22. Rxc8 {[%emt 0:00:43]} Rxc8 {[%emt 0:00:00]} 23. h3 {[%emt 0:00:17]} Be2 {[%emt 0:00:11]} 24. Rxe5 {[%emt 0:00:12]} Kf8 {[%emt 0:00:01]} 25. Rd5 {[%emt 0:00:56]} Rc1+ {[%emt 0:00:23]} 26. Kh2 {[%emt 0:00:02]} Rc2 {[%emt 0:00:00]} 27. Na4 {[%emt 0:00:35]} Ke7 {[%emt 0:00:13]} 28. Re5+ {[%emt 0:00:03]} Kf8 {[%emt 0:00:02]} 29. Be4 {[%emt 0:00:29]} Rxa2 {[%emt 0:00:10]} 30. Bc6 {[%emt 0:00:02]} Nd6 {[%emt 0:00:23]} 31. Nc3 {[%emt 0:00:08]} Rc2 {[%emt 0:00:03]} 32. Nxe2 {[%emt 0:00:01]} Rxe2 {[%emt 0:00:14]} 33. Kg2 {[%emt 0:00:01]} Rc2 {[%emt 0:00:04]} 34. Bf3 {[%emt 0:00:13]} f6 {[%emt 0:00:07]} 35. Rd5 {[%emt 0:00:12]} Ke7 {[%emt 0:00:01]} 36. Rd4 {[%emt 0:00:02]} a5 {[%emt 0:00:14]} 37. Bd5 {[%emt 0:00:04]} f5 {[%emt 0:00:22]} 38. g4 {[%emt 0:00:05]} b5 {[%emt 0:00:35]} 39. gxf5 {[%emt 0:00:10]} Nxf5 {[%emt 0:00:01]} 40. Re4+ {[%emt 0:00:00]} Kd6 {[%emt 0:00:03]} 41. Bg8 {[%emt 0:00:06]} h6 {[%emt 0:00:23]} 42. Re6+ {[%emt 0:00:02]} Kd7 {[%emt 0:00:01]} 43. Re5 {[%emt 0:00:01]} Nd6 {[%emt 0:00:06]} 44. Kg3 {[%emt 0:00:18]} Rc5 {[%emt 0:00:40]} 45. Bd5 {[%emt 0:00:36]} a4 {[%emt 0:00:11]} 46. bxa4 {[%emt 0:00:09]} bxa4 {[%emt 0:00:00]} 47. f4 {[%emt 0:00:02]} a3 {[%emt 0:00:12]} 48. Kf3 {[%emt 0:00:12]} Kd8 {[%emt 0:00:21]} 49. e4 {[%emt 0:00:19]} Ra5 {[%emt 0:00:04]} 50. Re6 {[%emt 0:00:03]} Nb5 {[%emt 0:00:13]} 51. Rg6 {[%emt 0:00:05]} Nc3 {[%emt 0:00:04]} 52. Bg8 {[%emt 0:00:06]} Ra7 {[%emt 0:00:03]} 53. f5 {[%emt 0:00:09]} Ke8 {[%emt 0:00:24]} 54. e5 {[%emt 0:00:04]} a2 {[%emt 0:00:04]} 55. Bxa2 {[%emt 0:00:02]} Nxa2 {[%emt 0:00:01]} 56. f6 {[%emt 0:00:02]} gxf6 {[%emt 0:00:07]} 57. exf6 {[%emt 0:00:07]} Ra3+ {[%emt 0:00:11]} 58. Kg4 {[%emt 0:00:02]} Kf7 {[%emt 0:00:00]} 59. Rxh6 {[%emt 0:00:01]} Nc3 {[%emt 0:00:02]} 60. Rh7+ {[%emt 0:00:03]} Kxf6 {[%emt 0:00:03]} 61. Rh6+ {[%emt 0:00:01]} Kg7 {[%emt 0:00:02]} 62. Rc6 {[%emt 0:00:03]} Nd5 {[%emt 0:00:02]} 63. h4 {[%emt 0:00:03]} Nf6+ {[%emt 0:00:02]} 64. Kf4 {[%emt 0:00:02]} Ra4+ {[%emt 0:00:01]} 65. Kg3 {[%emt 0:00:02]} Nh5+ {[%emt 0:00:04]} 66. Kh3 {[%emt 0:00:01]} Nf4+ {[%emt 0:00:01]} 67. Kg3 {[%emt 0:00:01]} Nh5+ {[%emt 0:00:00]} 68. Kh3 {[%emt 0:00:01]} Nf4+ {[%emt 0:00:00]} 69. Kg3 {[%emt 0:00:01]} Nh5+ {[%emt 0:00:01]} 1/2-1/2